{"text_format":"1","workbook":"xlsx","n_sheets":1,"sheets":["Bestelling"],"not_rendered":{"charts":0,"images":1,"macros":1,"external_links":0,"defined_names":47,"comments":0,"pivot_tables":0},"unopened":[],"bounds":{"document_bytes":16777216,"sheet_cells":100000,"rows_first":2000,"rows_last":500,"rows_between":2000,"halvings":0,"cell_chars":16384,"cell_head_chars":4096},"cells_cut":0,"cells_raw":0,"read":"whole","date_system":"1900"}

{"sheet":"Bestelling","index":0,"n_rows":319,"n_cols":22,"rows_kept":319,"cut":false,"hidden":false,"merged":[[303,25,303,28],[304,4,306,13],[307,1,307,17],[308,1,308,17],[300,4,300,7],[300,14,300,17],[300,25,300,28],[301,25,301,28],[302,4,302,5],[302,25,302,28],[296,25,296,28],[298,4,298,7],[298,14,298,17],[298,25,298,28],[299,4,299,7],[299,14,299,17],[299,25,299,28],[8,2,8,3],[297,4,297,7],[297,14,297,17],[297,25,297,28],[0,1,0,17],[7,5,7,13],[7,14,7,17],[289,9,289,13],[289,16,289,17],[290,7,290,9],[290,13,290,15],[290,16,290,17],[292,4,292,7],[293,14,293,17],[294,14,294,17],[296,4,296,7]]}
[null,"Bestelformulier LWEO 2026"]
[]
[]
[]
[]
[]
[null,null,null,null,null,null,null,null,null,null,null,null,null,null,null,null,null,null,null,8]
[null,"Bestelling",null,null,null,"Lesbrieven & Digitaal",null,null,null,null,null,null,null,null,"Uitwerkingen",null,null,null,null,11,10,7]
[null,"Titel",null,null,"Druk","ISBN","Advies-prijs","Aantal Leerling",null,"Aantal Docent1",null,null,null,"Totaal per titel","ISBN","Advies-prijs","Aantal","Totaal per titel"]
[]
[]
[null,"Economie",null,null,null,null,null,{"$f":"IF(ROWS(H13:H163)-COUNTBLANK(H13:H163)=0,\"\",\"v\")","v":""},null,{"$f":"IF(ROWS(J13:J163)-COUNTBLANK(J13:J163)=0,\"\",\"v\")","v":""},null,null,null,null,null,null,{"$f":"IF(ROWS(Q13:Q163)-COUNTBLANK(Q13:Q163)=0,\"\",\"v\")","v":""},null,null,{"$f":"IF(COUNTBLANK(H12:R12)=($T$8),\"\",\"v\")","v":""}]
[]
[null,"Economie onderbouw",null,null,null,null,null,{"$f":"IF(ROWS(H15:H35)-COUNTBLANK(H15:H35)=0,\"\",\"v\")","v":""},null,{"$f":"IF(ROWS(J15:J35)-COUNTBLANK(J15:J35)=0,\"\",\"v\")","v":""},null,null,null,null,null,null,{"$f":"IF(ROWS(Q15:Q35)-COUNTBLANK(Q15:Q35)=0,\"\",\"v\")","v":""},null,null,{"$f":"IF(COUNTBLANK(H14:R14)=($T$8),\"\",\"v\")","v":""}]
[null,"Onderbouw tweede klas",null,null,null,null,null,{"$f":"IF(ROWS(H16:H20)-COUNTBLANK(H16:H20)=0,\"\",\"v\")","v":""},null,{"$f":"IF(ROWS(J16:J20)-COUNTBLANK(J16:J20)=0,\"\",\"v\")","v":""},null,null,null,null,null,null,{"$f":"IF(ROWS(Q16:Q20)-COUNTBLANK(Q16:Q20)=0,\"\",\"v\")","v":""},null,null,""]
[null,"Jonge Consumenten",null,null,7,9789461103253,6.35,null,null,null,null,null,null,{"$f":"G16*H16+J16*G16*0.2","v":0},9789461103284,1.45,null,{"$f":"P16*Q16","v":0},null,{"$f":"IF(COUNTBLANK(H16:R16)=($V$8),\"\",\"v\")","v":""}]
[null,"Kiezen en Werken",null,null,6,9789461103260,6.65,null,null,null,null,null,null,{"$f":"G17*H17+J17*G17*0.2","v":0},9789461103291,1.35,null,{"$f":"P17*Q17","v":0},null,{"$f":"IF(COUNTBLANK(H17:R17)=($V$8),\"\",\"v\")","v":""}]
[null,"Samen Leven",null,null,6,9789461103277,4.9000000000000004,null,null,null,null,null,null,0,9789461103307,1.1000000000000001,null,0,null,""]
[]
[null,"Docentenhandleiding 2e klas Fundament",null,null,4,9789461103314,5.9,null,null,null,null,null,null,{"$f":"G20*J20","v":0},null,null,null,null,null,{"$f":"IF(COUNTBLANK(J20:Q20)=($V$8),\"\",\"v\")","v":""}]
[]
[null,"Onderbouw derde klas",null,null,null,null,null,{"$f":"IF(ROWS(H23:H29)-COUNTBLANK(H23:H29)=0,\"\",\"v\")","v":""},null,{"$f":"IF(ROWS(J23:J29)-COUNTBLANK(J23:J29)=0,\"\",\"v\")","v":""},null,null,null,null,null,null,{"$f":"IF(ROWS(Q23:Q29)-COUNTBLANK(Q23:Q29)=0,\"\",\"v\")","v":""},null,null,""]
[null,"Kopen en Werken",null,null,4,9789461103673,13.05,null,null,null,null,null,null,{"$f":"G23*H23+J23*G23*0.2","v":0},9789461103697,2.0499999999999998,null,{"$f":"P23*Q23","v":0},null,{"$f":"IF(COUNTBLANK(H23:R23)=($V$8),\"\",\"v\")","v":""}]
[null,"De Samenleving",null,null,6,9789461102843,4.6500000000000004,null,null,null,null,null,null,0,9789461102867,1,null,0,null,""]
[null,"Buying and Working",null,null,4,9789461103680,17.25,null,null,null,null,null,null,0,9789461103703,2.5499999999999998,null,0,null,""]
[null,"Society",null,null,6,9789461102898,7.25,null,null,null,null,null,null,0,9789461102911,1.2,null,0,null,""]
[]
[null,"Docentenhandleiding 3e klas Fundament",null,null,9,9789461103710,5.6,null,null,null,null,null,null,{"$f":"G28*J28","v":0},null,null,null,null,null,{"$f":"IF(COUNTBLANK(J28:Q28)=($V$8),\"\",\"v\")","v":""}]
[null,"Docentenhandleiding Fundament Engelstalig",null,null,7,9789461103727,5.8,null,null,null,null,null,null,{"$f":"G29*J29","v":0},null,null,null,null,null,{"$f":"IF(COUNTBLANK(J29:Q29)=($V$8),\"\",\"v\")","v":""}]
[]
[null,"Onderbouw digitaal",null,null,null,null,null,{"$f":"IF(ROWS(H32:H35)-COUNTBLANK(H32:H35)=0,\"\",\"v\")","v":""},null,null,null,null,null,null,null,null,null,null,null,""]
[null,"LWEOplus onderbouw Havo/Vwo 4)",null,null,null,9789071154898,2.6,null,null,null,null,null,null,{"$f":"G32*H32","v":0},null,null,null,null,null,{"$f":"IF(COUNTBLANK(H32:R32)=($U$8),\"\",\"v\")","v":""}]
[null,"LWEOplus totaal onderbouw Havo/Vwo 4)",null,null,null,9789461102812,9.15,null,null,null,null,null,null,{"$f":"G33*H33","v":0},null,null,null,null,null,""]
[null,"Methode Adapt 3e klas 4)",null,null,"(2)",9789461102966,16.5,null,null,null,null,null,null,{"$f":"G34*H34","v":0},null,null,null,null,null,""]
[null,"Methode Adapt 3e klas plus Kopen en Werken4)",null,null,"(2)",9789461102973,19.649999999999999,null,null,null,null,null,null,{"$f":"G35*H35","v":0},null,null,null,null,null,""]
[]
[null,"Economie bovenbouw",null,null,null,null,null,{"$f":"IF(ROWS(H38:H61)-COUNTBLANK(H38:H61)=0,\"\",\"v\")","v":""},null,{"$f":"IF(ROWS(J38:J61)-COUNTBLANK(J38:J61)=0,\"\",\"v\")","v":""},null,null,null,null,null,null,{"$f":"IF(ROWS(Q38:Q61)-COUNTBLANK(Q38:Q61)=0,\"\",\"v\")","v":""},null,null,""]
[null,"Economie Havo",null,null,null,null,null,{"$f":"IF(ROWS(H39:H61)-COUNTBLANK(H39:H61)=0,\"\",\"v\")","v":""},null,{"$f":"IF(ROWS(J39:J61)-COUNTBLANK(J39:J61)=0,\"\",\"v\")","v":""},null,null,null,null,null,null,{"$f":"IF(ROWS(Q39:Q61)-COUNTBLANK(Q39:Q61)=0,\"\",\"v\")","v":""},null,null,""]
[null,"Ruilen 5)",null,null,1,9789461103864,3.85,null,null,null,null,null,null,{"$f":"G39*H39+J39*G39*0.2","v":0},9789461103871,0.8,null,{"$f":"P39*Q39","v":0},null,{"$f":"IF(COUNTBLANK(H39:R39)=($V$8),\"\",\"v\")","v":""}]
[null,"Vragers en Aanbieders",null,null,1,9789461103079,8.6,null,null,null,null,null,null,0,9789461103109,1.85,null,0,null,""]
[null,"Jong en Oud",null,null,6,9789461103734,7.9,null,null,null,null,null,null,0,9789461103765,1.6,null,0,null,""]
[null,"Markt en Overheid",null,null,6,9789461103741,8.6999999999999993,null,null,null,null,null,null,0,9789461103772,1.85,null,0,null,""]
[null,"Europa",null,null,4,9789461103321,6.45,null,null,null,null,null,null,0,9789461103352,1.2,null,0,null,""]
[null,"Verdienen en Uitgeven",null,null,5,9789461103338,7.25,null,null,null,null,null,null,0,9789461103369,1.2,null,0,null,""]
[null,"Extra Havo",null,null,null,null,null,{"$f":"IF(ROWS(H46:H47)-COUNTBLANK(H46:H47)=0,\"\",\"v\")","v":""},null,{"$f":"IF(ROWS(J46:J47)-COUNTBLANK(J46:J47)=0,\"\",\"v\")","v":""},null,null,null,null,null,null,{"$f":"IF(ROWS(Q46)-COUNTBLANK(Q46)=0,\"\",\"v\")","v":""},null,null,""]
[null,"Rekonomie Havo",null,null,4,9789461103758,3.35,null,null,null,null,null,null,{"$f":"G46*H46+J46*G46*0.2","v":0},9789461103789,1,null,{"$f":"P46*Q46","v":0},null,{"$f":"IF(COUNTBLANK(H46:R46)=($V$8),\"\",\"v\")","v":""}]
[null,"Examentrainer Havo 5)",null,null,2,9789461103918,12.15,null,null,null,null,null,null,0,null,null,null,null,null,{"$f":"IF(COUNTBLANK(H47:R47)=($U$8),\"\",\"v\")","v":""}]
[null,"Keuzeonderwerpen Havo",null,null,null,null,null,{"$f":"IF(ROWS(H49:H54)-COUNTBLANK(H49:H54)=0,\"\",\"v\")","v":""},null,{"$f":"IF(ROWS(J49:J54)-COUNTBLANK(J49:J54)=0,\"\",\"v\")","v":""},null,null,null,null,null,null,{"$f":"IF(ROWS(Q49:Q54)-COUNTBLANK(Q49:Q54)=0,\"\",\"v\")","v":""},null,null,""]
[null,"Geldzaken 5)",null,null,3,9789461103888,3.3,null,null,null,null,null,null,0,9789461103895,0.9,null,0,null,{"$f":"IF(COUNTBLANK(H49:R49)=($V$8),\"\",\"v\")","v":""}]
[null,"Conjunctuur",null,null,2,9789461103468,3.55,null,null,null,null,null,null,0,9789461103482,1,null,0,null,""]
[null,"Werk en Werkloosheid",null,null,2,9789461103345,6.4,null,null,null,null,null,null,0,9789461103376,1,null,0,null,""]
[null,"Keuzegedrag",null,null,1,9789461101723,3.1,null,null,null,null,null,null,{"$f":"G52*H52+J52*G52*0.2","v":0},9789461101730,0.7,null,{"$f":"P52*Q52","v":0},null,{"$f":"IF(COUNTBLANK(H52:R52)=($V$8),\"\",\"v\")","v":""}]
[null,"Grenzen aan de groei?",null,null,1,9789461103475,4.25,null,null,null,null,null,null,0,9789461103499,1.3,null,0,null,""]
[null,"Ongelijkheid (Havo/Vwo)",null,null,2,9789461103543,5.45,null,null,null,null,null,null,0,9789461103581,1.35,null,0,null,""]
[null,"Docentenhandleiding Havo",null,null,null,null,null,null,null,{"$f":"IF(ROWS(J56)-COUNTBLANK(J56)=0,\"\",\"v\")","v":""},null,null,null,null,null,null,null,null,null,""]
[null,"Docentenhandleiding Havo 5)",null,null,14,9789461103901,12.1,null,null,null,null,null,null,{"$f":"G56*J56","v":0},null,null,null,null,null,{"$f":"IF(COUNTBLANK(J56:Q56)=($V$8),\"\",\"v\")","v":""}]
[null,"Digitaal Havo",null,null,null,null,null,{"$f":"IF(ROWS(H58:H61)-COUNTBLANK(H58:H61)=0,\"\",\"v\")","v":""},null,null,null,null,null,null,null,null,null,null,null,""]
[null,"LWEOplus bovenbouw Havo 4)",null,null,null,9789071154874,4.7,null,null,null,null,null,null,{"$f":"G58*H58","v":0},null,null,null,null,null,{"$f":"IF(COUNTBLANK(H58:R58)=($U$8),\"\",\"v\")","v":""}]
[null,"LWEOplus Totaal bovenbouw Havo 4)",null,null,null,9789461102690,17,null,null,null,null,null,null,0,null,null,null,null,null,""]
[null,"Oefen Adapt Havo 4)",null,null,null,9789461102614,5,null,null,null,null,null,null,0,null,null,null,null,null,""]
[null,"Methode Adapt Havo 4)",null,null,null,9789461102980,26.25,null,null,null,null,null,null,0,null,null,null,null,null,""]
[]
[null,"Economie Vwo",null,null,null,null,null,{"$f":"IF(ROWS(H64:H86)-COUNTBLANK(H64:H86)=0,\"\",\"v\")","v":""},null,{"$f":"IF(ROWS(J64:J86)-COUNTBLANK(J64:J86)=0,\"\",\"v\")","v":""},null,null,null,null,null,null,{"$f":"IF(ROWS(Q64:Q86)-COUNTBLANK(Q64:Q86)=0,\"\",\"v\")","v":""},null,null,""]
[null,"Levensloop",null,null,6,9789461103635,12.15,null,null,null,null,null,null,{"$f":"G64*H64+J64*G64*0.2","v":0},9789461103642,1.9,null,{"$f":"P64*Q64","v":0},null,{"$f":"IF(COUNTBLANK(H64:R64)=($V$8),\"\",\"v\")","v":""}]
[null,"Vraag en Aanbod",null,null,4,9789461103512,9.35,null,null,null,null,null,null,0,9789461103550,1.9,null,0,null,""]
[null,"Marktgedrag",null,null,2,9789461103529,7.65,null,null,null,null,null,null,0,9789461103567,1.8,null,0,null,""]
[null,"Marktresultaat en Overheidsinvloed",null,null,1,9789461103147,8.65,null,null,null,null,null,null,0,9789461103178,2.1,null,0,null,""]
[null,"Welvaart",null,null,1,9789461103154,8.65,null,null,null,null,null,null,{"$f":"G68*H68+J68*G68*0.2","v":0},9789461103185,1.85,null,{"$f":"P68*Q68","v":0},null,{"$f":"IF(COUNTBLANK(H68:R68)=($V$8),\"\",\"v\")","v":""}]
[null,"Economisch Beleid",null,null,2,9789461103802,10.75,null,null,null,null,null,null,{"$f":"G69*H69+J69*G69*0.2","v":0},9789461103826,2.1,null,{"$f":"P69*Q69","v":0},null,{"$f":"IF(COUNTBLANK(H69:R69)=($V$8),\"\",\"v\")","v":""}]
[null,"Wereldeconomie",null,null,3,9789461103390,9.5500000000000007,null,null,null,null,null,null,0,9789461103413,1.8,null,0,null,""]
[null,"Extra Vwo",null,null,null,null,null,{"$f":"IF(ROWS(H72:H73)-COUNTBLANK(H72:H73)=0,\"\",\"v\")","v":""},null,{"$f":"IF(ROWS(J72:J73)-COUNTBLANK(J72:J73)=0,\"\",\"v\")","v":""},null,null,null,null,null,null,{"$f":"IF(ROWS(Q72)-COUNTBLANK(Q72)=0,\"\",\"v\")","v":""},null,null,""]
[null,"Rekonomie Vwo",null,null,4,9789461103819,5.45,null,null,null,null,null,null,{"$f":"G72*H72+J72*G72*0.2","v":0},9789461103833,1.35,null,{"$f":"P72*Q72","v":0},null,{"$f":"IF(COUNTBLANK(H72:R72)=($V$8),\"\",\"v\")","v":""}]
[null,"Examentrainer Vwo 5)",null,null,2,9789461103956,14.25,null,null,null,null,null,null,0,null,null,null,null,null,{"$f":"IF(COUNTBLANK(H73:R73)=($U$8),\"\",\"v\")","v":""}]
[null,"Keuzeonderwerpen Vwo",null,null,null,null,null,{"$f":"IF(ROWS(H75:H79)-COUNTBLANK(H75:H79)=0,\"\",\"v\")","v":""},null,{"$f":"IF(ROWS(J75:J79)-COUNTBLANK(J75:J79)=0,\"\",\"v\")","v":""},null,null,null,null,null,null,{"$f":"IF(ROWS(Q75:Q79)-COUNTBLANK(Q75:Q79)=0,\"\",\"v\")","v":""},null,null,""]
[null,"Monetaire Zaken 5)",null,null,3,9789461103925,5.45,null,null,null,null,null,null,0,9789461103932,1.35,null,0,null,{"$f":"IF(COUNTBLANK(H75:R75)=($V$8),\"\",\"v\")","v":""}]
[null,"Economische Modellen",null,null,2,9789461103604,6.95,null,null,null,null,null,null,0,9789461103611,1.55,null,0,null,""]
[null,"Arbeid",null,null,2,9789461103536,6.55,null,null,null,null,null,null,0,9789461103574,1.3,null,0,null,""]
[null,"Gedragseconomie",null,null,2,9789461103215,5.45,null,null,null,null,null,null,0,9789461103222,1.45,null,0,null,""]
[null,"Ongelijkheid (Havo/Vwo)",null,null,2,9789461103543,5.45,null,null,null,null,null,null,0,9789461103581,1.35,null,0,null,""]
[null,"Docentenhandleiding Vwo",null,null,null,null,null,{"$f":"IF(ROWS(H81)-COUNTBLANK(H81)=0,\"\",\"v\")","v":""},null,{"$f":"IF(ROWS(J81)-COUNTBLANK(J81)=0,\"\",\"v\")","v":""},null,null,null,null,null,null,null,null,null,""]
[null,"Docentenhandleiding Vwo 5)",null,null,15,9789461103949,12.1,null,null,null,null,null,null,{"$f":"G81*J81","v":0},null,null,null,null,null,{"$f":"IF(COUNTBLANK(J81:Q81)=($V$8),\"\",\"v\")","v":""}]
[null,"Digitaal Vwo",null,null,null,null,null,{"$f":"IF(ROWS(H83:H86)-COUNTBLANK(H83:H86)=0,\"\",\"v\")","v":""},null,null,null,null,null,null,null,null,null,null,null,{"$f":"IF(COUNTBLANK(H82:R82)=($T$8),\"\",\"v\")","v":""}]
[null,"LWEOplus bovenbouw Vwo 4)",null,null,null,9789071154881,4.7,null,null,null,null,null,null,{"$f":"G83*H83","v":0},null,null,null,null,null,{"$f":"IF(COUNTBLANK(H83:R83)=($U$8),\"\",\"v\")","v":""}]
[null,"LWEOplus Totaal bovenbouw Vwo 4)",null,null,null,9789461102706,17.899999999999999,null,null,null,null,null,null,0,null,null,null,null,null,""]
[null,"Oefen Adapt Vwo 4)",null,null,null,9789461102621,5,null,null,null,null,null,null,0,null,null,null,null,null,""]
[null,"Methode Adapt Vwo 4)",null,null,null,9789461102997,27.25,null,null,null,null,null,null,0,null,null,null,null,null,""]
[]
[null,"Voorgaande drukken",null,null,null,null,null,{"$f":"IF(ROWS(H89:H98)-COUNTBLANK(H89:H98)=0,\"\",\"v\")","v":""},null,{"$f":"IF(ROWS(J89:J98)-COUNTBLANK(J89:J98)=0,\"\",\"v\")","v":""},null,null,null,null,null,null,{"$f":"IF(ROWS(Q89:Q98)-COUNTBLANK(Q89:Q98)=0,\"\",\"v\")","v":""},null,null,{"$f":"IF(COUNTBLANK(H88:R88)=($T$8),\"\",\"v\")","v":""}]
[null,"Havo (beschikbaar tot mei 2026)",null,null,null,null,null,{"$f":"IF(ROWS(H90:H92)-COUNTBLANK(H90:H92)=0,\"\",\"v\")","v":""},null,{"$f":"IF(ROWS(J90:J93)-COUNTBLANK(J90:J93)=0,\"\",\"v\")","v":""},null,null,null,null,null,null,{"$f":"IF(ROWS(Q90:Q92)-COUNTBLANK(Q90:Q92)=0,\"\",\"v\")","v":""},null,null,{"$f":"IF(COUNTBLANK(H89:R89)=($T$8),\"\",\"v\")","v":""}]
[null,"Crisis",null,null,3,9789461103444,3.85,null,null,null,null,null,null,{"$f":"G90*H90+J90*G90*0.2","v":0},9789461103451,0.8,null,{"$f":"P90*Q90","v":0},null,{"$f":"IF(COUNTBLANK(H90:R90)=($V$8),\"\",\"v\")","v":""}]
[null,"Examentrainer Havo",null,null,1,9789461103666,12.15,null,null,null,null,null,null,0,null,null,null,null,null,{"$f":"IF(COUNTBLANK(H91:R91)=($U$8),\"\",\"v\")","v":""}]
[null,"Geldzaken",null,null,2,9789461102652,3.3,null,null,null,null,null,null,0,9789461102669,0.9,null,{"$f":"P92*Q92","v":0},null,{"$f":"IF(COUNTBLANK(H92:R92)=($V$8),\"\",\"v\")","v":""}]
[null,"Docentenhandleiding Havo",null,null,13,9789461103796,12.1,null,null,null,null,null,null,{"$f":"G93*J93","v":0},null,null,null,null,null,{"$f":"IF(COUNTBLANK(J93:Q93)=($V$8),\"\",\"v\")","v":""}]
[]
[null,"Vwo (beschikbaar tot mei 2026)",null,null,null,null,null,{"$f":"IF(ROWS(H96:H98)-COUNTBLANK(H96:H98)=0,\"\",\"v\")","v":""},null,{"$f":"IF(ROWS(J96:J98)-COUNTBLANK(J96:J98)=0,\"\",\"v\")","v":""},null,null,null,null,null,null,{"$f":"IF(ROWS(Q96:Q98)-COUNTBLANK(Q96:Q98)=0,\"\",\"v\")","v":""},null,null,{"$f":"IF(COUNTBLANK(H95:R95)=($T$8),\"\",\"v\")","v":""}]
[null,"Examentrainer Vwo",null,null,1,9789461103659,14.25,null,null,null,null,null,null,{"$f":"G96*H96+J96*G96*0.2","v":0},null,null,null,null,null,{"$f":"IF(COUNTBLANK(H96:R96)=($U$8),\"\",\"v\")","v":""}]
[null,"Monetaire Zaken",null,null,2,9789461102638,5.45,null,null,null,null,null,null,0,9789461102645,1.35,null,{"$f":"P97*Q97","v":0},null,{"$f":"IF(COUNTBLANK(H97:R97)=($V$8),\"\",\"v\")","v":""}]
[null,"Docentenhandleiding Vwo",null,null,14,9789461103840,12.1,null,null,null,null,null,null,{"$f":"G98*J98","v":0},null,null,null,null,null,{"$f":"IF(COUNTBLANK(J98:Q98)=($V$8),\"\",\"v\")","v":""}]
[]
[null,"Voor de docent",null,null,null,null,null,null,null,{"$f":"IF(ROWS(J101:J111)-COUNTBLANK(J101:J111)=0,\"\",\"v\")","v":""},null,null,null,null,null,null,null,null,null,""]
[null,"Digitaal",null,null,null,null,null,null,null,{"$f":"IF(ROWS(J102:J103)-COUNTBLANK(J102:J103)=0,\"\",\"v\")","v":""},null,null,null,null,null,null,{"$f":"IF(ROWS(Q114:Q135)-COUNTBLANK(Q114:Q135)=0,\"\",\"v\")","v":""},null,null,""]
[null,"Docentenwebsite 3)",null,null,null,null,105,null,null,null,null,null,null,{"$f":"G102*J102","v":0},null,null,null,null,null,{"$f":"IF(COUNTBLANK(J102:Q102)=($V$8),\"\",\"v\")","v":""}]
[null,"Docentenpresentatie 3)",null,null,null,null,20,null,null,null,null,null,null,{"$f":"G103*J103","v":0},null,null,null,null,null,{"$f":"IF(COUNTBLANK(J103:Q103)=($V$8),\"\",\"v\")","v":""}]
[null,"De Vrolijke Economen",null,null,null,null,null,null,null,{"$f":"IF(ROWS(J105:J111)-COUNTBLANK(J105:J111)=0,\"\",\"v\")","v":""},null,null,null,null,null,null,null,null,null,""]
[null,"Concept: Markt",null,null,1,9789461100504,42,null,null,null,null,null,null,{"$f":"G105*J105","v":0},null,null,null,null,null,{"$f":"IF(COUNTBLANK(J105:Q105)=($V$8),\"\",\"v\")","v":""}]
[null,"Concept: Ruilen over de tijd",null,null,1,9789461100719,42,null,null,null,null,null,null,{"$f":"G106*J106","v":0},null,null,null,null,null,{"$f":"IF(COUNTBLANK(J106:Q106)=($V$8),\"\",\"v\")","v":""}]
[null,"Concepten: Schaarste en Ruil",null,null,1,9789461102065,42,null,null,null,null,null,null,0,null,null,null,null,null,""]
[null,"Management en Organisatie",null,null,1,9789461102058,42,null,null,null,null,null,null,0,null,null,null,null,null,""]
[null,"Vaardigheid: Experimenten",null,null,1,9789461102478,42,null,null,null,null,null,null,0,null,null,null,null,null,""]
[null,"Concept: Welvaart en Groei",null,null,1,9789461102829,42,null,null,null,null,null,null,0,null,null,null,null,null,""]
[null,"Bedrijfseconomie",null,null,1,9789461103062,42,null,null,null,null,null,null,0,null,null,null,null,null,""]
[]
[]
[]
[]
[]
[]
[]
[]
[]
[]
[]
[]
[]
[]
[]
[]
[]
[]
[]
[]
[]
[]
[]
[]
[]
[]
[]
[]
[]
[]
[]
[]
[]
[]
[]
[]
[]
[]
[]
[]
[]
[]
[]
[]
[]
[]
[]
[]
[]
[]
[]
[]
[null,"Bedrijfseconomie",null,null,null,null,null,{"$f":"IF(ROWS(H165:H230)-COUNTBLANK(H165:H230)=0,\"\",\"v\")","v":""},null,{"$f":"IF(ROWS(J165:J230)-COUNTBLANK(J165:J230)=0,\"\",\"v\")","v":""},null,null,null,null,null,null,{"$f":"IF(ROWS(Q165:Q230)-COUNTBLANK(Q165:Q230)=0,\"\",\"v\")","v":""},null,null,{"$f":"IF(COUNTBLANK(H164:R164)=($T$8),\"\",\"v\")","v":""}]
[]
[null,"Bedrijfseconomie Havo",null,null,null,null,null,{"$f":"IF(ROWS(H167:H187)-COUNTBLANK(H167:H187)=0,\"\",\"v\")","v":""},null,{"$f":"IF(ROWS(J167:J187)-COUNTBLANK(J167:J187)=0,\"\",\"v\")","v":""},null,null,null,null,null,null,{"$f":"IF(ROWS(Q167:Q187)-COUNTBLANK(Q167:Q187)=0,\"\",\"v\")","v":""},null,null,""]
[null,"Financiële Zelfredzaamheid Havo 5)",null,null,5,9789460201950,9.4499999999999993,null,null,null,null,null,null,{"$f":"G167*H167+0.2*G167*J167","v":0},9789460201967,1.5,null,{"$f":"P167*Q167","v":0},null,{"$f":"IF(COUNTBLANK(H167:R167)=($V$8),\"\",\"v\")","v":""}]
[null,"Bedrijf Starten Havo",null,null,3,9789460200687,11.55,null,null,null,null,null,null,{"$f":"G168*H168+0.2*G168*J168","v":0},9789460200915,2.1,null,0,null,""]
[null,"Onderneem-het-zelf Havo/Vwo",null,null,2,9789460200236,5.05,null,null,null,null,null,null,0,9789460200571,0.95,null,0,null,""]
[null,"Personeelsbeleid en Interne Organisatie Havo",null,null,3,9789460201004,7.85,null,null,null,null,null,null,0,9789460201271,1.2,null,0,null,""]
[null,"Marktverovering Havo",null,null,3,9789460201233,6.2,null,null,null,null,null,null,0,9789460201288,1.2,null,0,null,""]
[null,"Investeren Havo",null,null,2,9789460200243,2.7,null,null,null,null,null,null,0,9789460200519,0.95,null,0,null,""]
[null,"Financiering en Verslaggeving Havo",null,null,4,9789460201837,10.85,null,null,null,null,null,null,0,9789460201844,1.25,null,0,null,""]
[null,"Het Resultaat Havo 5)",null,null,5,9789460201974,6.2,null,null,null,null,null,null,0,9789460201981,1.35,null,0,null,""]
[null,"Extra Havo",null,null,null,null,null,{"$f":"IF(ROWS(H176:H177)-COUNTBLANK(H176:H177)=0,\"\",\"v\")","v":""},null,{"$f":"IF(ROWS(J176:J177)-COUNTBLANK(J176:J177)=0,\"\",\"v\")","v":""},null,null,null,null,null,null,{"$f":"IF(ROWS(Q176:Q177)-COUNTBLANK(Q176:Q177)=0,\"\",\"v\")","v":""},null,null,{"$f":"IF(COUNTBLANK(H175:R175)=($T$8),\"\",\"v\")","v":""}]
[null,"Examentrainer Bedrijfseconomie Havo 5)",null,null,1,9789460202063,12.15,null,null,null,null,null,null,{"$f":"G176*H176+0.2*G176*J176","v":0},null,null,null,null,null,{"$f":"IF(COUNTBLANK(H176:R176)=($U$8),\"\",\"v\")","v":""}]
[null,"Keuzelesbrieven Havo",null,null,null,null,null,{"$f":"IF(ROWS(H178:H179)-COUNTBLANK(H178:H179)=0,\"\",\"v\")","v":""},null,{"$f":"IF(ROWS(J178:J179)-COUNTBLANK(J178:J179)=0,\"\",\"v\")","v":""},null,null,null,null,null,null,{"$f":"IF(ROWS(Q178:Q179)-COUNTBLANK(Q178:Q179)=0,\"\",\"v\")","v":""},null,null,{"$f":"IF(COUNTBLANK(H177:R177)=($T$8),\"\",\"v\")","v":""}]
[null,"Circulair Ondernemen Havo",null,null,2,9789460200267,3.6,null,null,null,null,null,null,{"$f":"G178*H178+0.2*G178*J178","v":0},9789460200533,0.95,null,0,null,{"$f":"IF(COUNTBLANK(H178:R178)=($V$8),\"\",\"v\")","v":""}]
[null,"Bedrijfseconomie@home Havo",null,null,2,9789460200274,2.65,null,null,null,null,null,null,0,9789460200564,0.95,null,0,null,""]
[]
[null,"Docentenhandleiding Havo",null,null,null,null,null,null,null,{"$f":"IF(ROWS(J182)-COUNTBLANK(J182)=0,\"\",\"v\")","v":""},null,null,null,null,null,null,null,null,null,""]
[null,"Docentenhandleiding BE Havo 5)",null,null,7,9789460201998,17.100000000000001,null,null,null,null,null,null,{"$f":"G182*J182","v":0},null,null,null,null,null,{"$f":"IF(COUNTBLANK(J182:Q182)=($V$8),\"\",\"v\")","v":""}]
[null,"Bedrijfseconomie Digitaal Havo",null,null,null,null,null,{"$f":"IF(ROWS(H184:H187)-COUNTBLANK(H184:H187)=0,\"\",\"v\")","v":""},null,null,null,null,null,null,null,null,null,null,null,""]
[null,"Bedrijfseconomieplus Havo 4)",null,null,null,9789460204814,4.25,null,null,null,null,null,null,{"$f":"G184*H184","v":0},null,null,null,null,null,{"$f":"IF(COUNTBLANK(H184:R184)=($U$8),\"\",\"v\")","v":""}]
[null,"Bedrijfseconomieplus Totaal Havo 4)",null,null,null,9789460204821,20.5,null,null,null,null,null,null,0,null,null,null,null,null,""]
[null,"AdaptiefToets Havo 4)",null,null,null,9789460204838,6.35,null,null,null,null,null,null,0,null,null,null,null,null,""]
[null,"BE Adaptief Havo 4)",null,null,null,9789460204869,29.35,null,null,null,null,null,null,0,null,null,null,null,null,""]
[]
[null,"Bedrijfseconomie Vwo",null,null,null,null,null,{"$f":"IF(ROWS(H190:H209)-COUNTBLANK(H190:H209)=0,\"\",\"v\")","v":""},null,{"$f":"IF(ROWS(J190:J209)-COUNTBLANK(J190:J209)=0,\"\",\"v\")","v":""},null,null,null,null,null,null,{"$f":"IF(ROWS(Q190:Q209)-COUNTBLANK(Q190:Q209)=0,\"\",\"v\")","v":""},null,null,""]
[null,"Financiële Levensloop",null,null,2,9789460201622,12,null,null,null,null,null,null,{"$f":"G190*H190+0.2*G190*J190","v":0},9789460201639,1.75,null,{"$f":"P190*Q190","v":0},null,{"$f":"IF(COUNTBLANK(H190:R190)=($V$8),\"\",\"v\")","v":""}]
[null,"Bedrijf Starten Vwo",null,null,4,9789460201646,12,null,null,null,null,null,null,{"$f":"G191*H191+0.2*G191*J191","v":0},9789460201653,2.2999999999999998,null,0,null,{"$f":"IF(COUNTBLANK(H191:R191)=($V$8),\"\",\"v\")","v":""}]
[null,"Onderneem-het-zelf Havo/Vwo",null,null,2,9789460200236,5.05,null,null,null,null,null,null,0,9789460200571,0.95,null,0,null,""]
[null,"Personeelsbeleid en Interne Organisatie Vwo",null,null,3,9789460201684,11,null,null,null,null,null,null,0,9789460201691,1.2,null,0,null,""]
[null,"Marktverovering Vwo",null,null,3,9789460201660,7.2,null,null,null,null,null,null,0,9789460201677,1.2,null,0,null,""]
[null,"Investeren Vwo",null,null,2,9789460200601,3.15,null,null,null,null,null,null,0,9789460200649,0.95,null,0,null,""]
[null,"Financiering van de bv en nv Vwo",null,null,2,9789460201882,8.85,null,null,null,null,null,null,{"$f":"G196*H196+0.2*G196*J196","v":0},9789460201912,1.35,null,{"$f":"P196*Q196","v":0},null,{"$f":"IF(COUNTBLANK(H196:R196)=($V$8),\"\",\"v\")","v":""}]
[null,"Het Jaarverslag Vwo",null,null,2,9789460201899,6.5,null,null,null,null,null,null,{"$f":"G197*H197+0.2*G197*J197","v":0},9789460201929,1.3,null,{"$f":"P197*Q197","v":0},null,""]
[null,"Het Resultaat Vwo",null,null,4,9789460201905,11.75,null,null,null,null,null,null,{"$f":"G198*H198+0.2*G198*J198","v":0},9789460201936,2.0499999999999998,null,{"$f":"P198*Q198","v":0},null,{"$f":"IF(COUNTBLANK(H198:R198)=($V$8),\"\",\"v\")","v":""}]
[null,"Keuzelesbrieven Vwo",null,null,null,null,null,{"$f":"IF(ROWS(H200:H201)-COUNTBLANK(H200:H201)=0,\"\",\"v\")","v":""},null,{"$f":"IF(ROWS(J200:J201)-COUNTBLANK(J200:J201)=0,\"\",\"v\")","v":""},null,null,null,null,null,null,{"$f":"IF(ROWS(Q200:Q201)-COUNTBLANK(Q200:Q201)=0,\"\",\"v\")","v":""},null,null,""]
[null,"Circulair Ondernemen Vwo",null,null,2,9789460200618,5.0999999999999996,null,null,null,null,null,null,{"$f":"G200*H200+0.2*G200*J200","v":0},9789460200656,1.2,null,0,null,{"$f":"IF(COUNTBLANK(H200:R200)=($V$8),\"\",\"v\")","v":""}]
[null,"Bedrijfseconomie@home Vwo",null,null,2,9789460200625,3.45,null,null,null,null,null,null,0,9789460200663,1.2,null,0,null,""]
[]
[null,"Docentenhandleiding Vwo",null,null,null,null,null,null,null,{"$f":"IF(ROWS(J204)-COUNTBLANK(J204)=0,\"\",\"v\")","v":""},null,null,null,null,null,null,null,null,null,""]
[null,"Docentenhandleiding BE Vwo",null,null,6,9789460201943,18.100000000000001,null,null,null,null,null,null,{"$f":"G204*J204","v":0},null,null,null,null,null,{"$f":"IF(COUNTBLANK(J204:Q204)=($V$8),\"\",\"v\")","v":""}]
[null,"Bedrijfseconomie Digitaal Vwo",null,null,null,null,null,{"$f":"IF(ROWS(H206:H209)-COUNTBLANK(H206:H209)=0,\"\",\"v\")","v":""},null,null,null,null,null,null,null,null,null,null,null,""]
[null,"Bedrijfseconomieplus Vwo 4)",null,null,null,9789460205811,4.25,null,null,null,null,null,null,{"$f":"G206*H206","v":0},null,null,null,null,null,{"$f":"IF(COUNTBLANK(H206:R206)=($U$8),\"\",\"v\")","v":""}]
[null,"Bedrijfseconomieplus Totaal Vwo 4)",null,null,null,9789460205828,19,null,null,null,null,null,null,0,null,null,null,null,null,""]
[null,"AdaptiefToets Vwo 4)",null,null,null,9789460205835,6.35,null,null,null,null,null,null,0,null,null,null,null,null,""]
[null,"BE Adaptief Vwo 4)",null,null,null,9789460205859,26.85,null,null,null,null,null,null,0,null,null,null,null,null,""]
[]
[null,"Bedrijfseconomie Havo/Vwo",null,null,null,null,null,{"$f":"IF(ROWS(H212:H219)-COUNTBLANK(H212:H219)=0,\"\",\"v\")","v":""},null,{"$f":"IF(ROWS(J212:J219)-COUNTBLANK(J212:J219)=0,\"\",\"v\")","v":""},null,null,null,null,null,null,{"$f":"IF(ROWS(Q212:Q219)-COUNTBLANK(Q212:Q219)=0,\"\",\"v\")","v":""},null,null,""]
[null,"De Boekhoudmodule Havo/Vwo",null,null,5,9789460201806,11.4,null,null,null,null,null,null,{"$f":"G212*H212+0.2*G212*J212","v":0},9789460201813,3.2,null,0,null,{"$f":"IF(COUNTBLANK(H212:R212)=($V$8),\"\",\"v\")","v":""}]
[null,"Het Rekenwonder Havo/Vwo 2)",null,null,7,9789460200557,4.55,null,null,null,null,null,null,{"$f":"G213*H213+0.2*G213*J213","v":0},null,null,null,null,null,{"$f":"IF(COUNTBLANK(H213:R213)=($U$8),\"\",\"v\")","v":""}]
[null,"Het Rekenwonder Havo/Vwo 2)",null,null,8,9789460201585,4.55,null,null,null,null,null,null,0,null,null,null,null,null,{"$f":"IF(COUNTBLANK(H214:R214)=($U$8),\"\",\"v\")","v":""}]
[null,"Administratiespel Havo/Vwo",null,null,4,9789460200908,14.75,null,null,null,null,null,null,{"$f":"G215*J215","v":0},null,null,null,null,null,{"$f":"IF(COUNTBLANK(J215:Q215)=($V$8),\"\",\"v\")","v":""}]
[]
[null,"Docentenhandleiding Havo/Vwo",null,null,null,null,null,null,null,{"$f":"IF(ROWS(J218:J219)-COUNTBLANK(J218:J219)=0,\"\",\"v\")","v":""},null,null,null,null,null,null,null,null,null,""]
[null,"Docentenhandleiding Rekenwonder H/V",null,null,6,9789460201592,7.1,null,null,null,null,null,null,{"$f":"G218*J218","v":0},null,null,null,null,null,{"$f":"IF(COUNTBLANK(J218:Q218)=($V$8),\"\",\"v\")","v":""}]
[null,"Docentenhandleiding Boekhoudmodule H/V",null,null,5,9789460201820,14.1,null,null,null,null,null,null,0,null,null,null,null,null,{"$f":"IF(COUNTBLANK(J219:Q219)=($V$8),\"\",\"v\")","v":""}]
[]
[null,"Voorgaande drukken",null,null,null,null,null,{"$f":"IF(ROWS(H222:H225)-COUNTBLANK(H222:H225)=0,\"\",\"v\")","v":""},null,{"$f":"IF(ROWS(J222:J225)-COUNTBLANK(J222:J225)=0,\"\",\"v\")","v":""},null,null,null,null,null,null,{"$f":"IF(ROWS(Q222:Q225)-COUNTBLANK(Q222:Q225)=0,\"\",\"v\")","v":""},null,null,{"$f":"IF(COUNTBLANK(H221:R221)=($T$8),\"\",\"v\")","v":""}]
[null,"Havo (beschikbaar tot mei 2026)",null,null,null,null,null,{"$f":"IF(ROWS(H223:H223)-COUNTBLANK(H223:H223)=0,\"\",\"v\")","v":""},null,{"$f":"IF(ROWS(J223:J225)-COUNTBLANK(J223:J225)=0,\"\",\"v\")","v":""},null,null,null,null,null,null,{"$f":"IF(ROWS(Q223:Q223)-COUNTBLANK(Q223:Q223)=0,\"\",\"v\")","v":""},null,null,{"$f":"IF(COUNTBLANK(H222:R222)=($T$8),\"\",\"v\")","v":""}]
[null,"Financiële Zelfredzaamheid Havo",null,null,4,9789460200991,9.4499999999999993,null,null,null,null,null,null,{"$f":"G223*H223+0.2*G223*J223","v":0},9789460201264,1.5,null,{"$f":"P223*Q223","v":0},null,{"$f":"IF(COUNTBLANK(H223:R223)=($V$8),\"\",\"v\")","v":""}]
[null,"Het Resultaat Havo",null,null,4,9789460201851,6.2,null,null,null,null,null,null,{"$f":"G224*H224+0.2*G224*J224","v":0},9789460201868,1.35,null,0,null,""]
[null,"Docentenhandleiding BE Havo",null,null,6,9789460201875,17.100000000000001,null,null,null,null,null,null,{"$f":"G225*J225","v":0},null,null,null,null,null,{"$f":"IF(COUNTBLANK(J225:Q225)=($V$8),\"\",\"v\")","v":""}]
[]
[null,"Voor de docent",null,null,null,null,null,{"$f":"IF(ROWS(H228:H230)-COUNTBLANK(H228:H230)=0,\"\",\"v\")","v":""},null,{"$f":"IF(ROWS(J228:J230)-COUNTBLANK(J228:J230)=0,\"\",\"v\")","v":""},null,null,null,null,null,null,null,null,null,""]
[null,"Digitaal",null,null,null,null,null,null,null,{"$f":"IF(ROWS(J229:J230)-COUNTBLANK(J229:J230)=0,\"\",\"v\")","v":""},null,null,null,null,null,null,null,null,null,""]
[null,"Docentenwebsite bedrijfseconomie 3)",null,null,null,null,120,null,null,null,null,null,null,{"$f":"G229*J229","v":0},null,null,null,null,null,{"$f":"IF(COUNTBLANK(H229:R229)=($U$8),\"\",\"v\")","v":""}]
[null,"Docentenpresentatie bedrijfseconomie 3)",null,null,null,null,25,null,null,null,null,null,null,0,null,null,null,null,null,{"$f":"IF(COUNTBLANK(H230:R230)=($U$8),\"\",\"v\")","v":""}]
[]
[null,"LWEO multomappen",null,null,null,null,null,{"$f":"IF(ROWS(H234)-COUNTBLANK(H234)=0,\"\",\"v\")","v":""},null,null,null,null,null,null,null,null,null,null,null,{"$f":"IF(COUNTBLANK(H232:R232)=($T$8),\"\",\"v\")","v":""}]
[]
[null,"LWEO multomappen - doos 50 stuks",null,null,null,9789461103857,162.5,null,null,null,null,null,null,{"$f":"G234*H234","v":0},null,null,null,null,null,{"$f":"IF(COUNTBLANK(H234:R234)=($U$8),\"\",\"v\")","v":""}]
[]
[]
[]
[]
[]
[]
[]
[]
[]
[]
[]
[]
[]
[]
[]
[]
[]
[]
[]
[]
[]
[]
[]
[]
[]
[]
[]
[]
[]
[]
[]
[]
[]
[]
[]
[]
[]
[]
[]
[]
[]
[]
[]
[]
[]
[]
[]
[]
[]
[]
[]
[]
[]
[]
[]
[null,null,null,null,null,"Subtotaal",null,null,null,{"$f":"SUBTOTAL(9,N12:N288)","v":0},null,null,null,null,"Subtotaal",null,{"$f":"SUBTOTAL(9,R12:R288)","v":0}]
[null,null,null,null,null,"Totale bestelling:",null,{"$f":"SUBTOTAL(9,H12:H288)+SUBTOTAL(9,J12:J288)+SUBTOTAL(9,Q12:Q288)","v":0},null,null,null,null,null," titels voor een bedrag van",null,null,{"$f":"SUM(J290+Q290)","v":0}]
[null,"Bestelgegevens",null,null,null,null,null,null,null,null,null,null,null,null,"* Exclusief eventuele verzendkosten"]
[null,"Naam",null,null,null,null,null,null,null,"Afleveradres"]
[null,"Docent / Leerling",null,null,null,null,null,null,null,"Adres en nummer"]
[null,"Man / Vrouw",null,null,null,null,null,null,null,"Postcode en plaats"]
[]
[null,"School",null,null,null,null,null,null,null,"Afwijkend factuuradres? Vul het dan hieronder in."]
[null,"Klantnummer (indien bekend)",null,null,null,null,null,null,null,"Naam"]
[null,"Datum",null,null,null,null,null,null,null,"Adres en nummer"]
[null,"E-mailadres",null,null,null,null,null,null,null,"Postcode en plaats"]
[null,"Telefoonnummer",null,null,null,null,null,null,null,"Telefoonnummer"]
[]
[null,"Afleverweek"]
[]
[null,"Opmerkingen"]
[]
[]
[null,null,null,null,null,null,null,null,null,null,null,null,null,null,null,null,null,null,null,"docent/leerling/overig"]
[null,"Toelichting",null,null,null,null,null,null,null,null,null,null,null,null,null,null,null,null,null,"docent"]
[null,"•    De adviesprijzen zijn inclusief 9% btw.",null,null,null,null,null,null,null,null,null,null,null,null,null,null,null,null,null,"leerling"]
[null,"•    De adviesprijzen gelden van 1 januari 2026 tot 1 januari 2027. Prijswijzigingen zijn mogelijk i.v.m. aanpassing van het lesmateriaal.",null,null,null,null,null,null,null,null,null,null,null,null,null,null,null,null,null,"overig"]
[null,"•    Een multomap kost € 3,25 p.s., maar wordt alleen in dozen van 50 stuks verkocht. Prijs incl. 21% btw."]
[null,"•    Op al onze aanbiedingen en overeenkomsten zijn de algemene voorwaarden van de LWEO B.V. van toepassing zoals gedeponeerd bij de Kamer van Koophandel"]
[null,"      Brabant onder nummer 78276578."]
[null,"1)   Lesbrieven voor docenten kosten 20% van de adviesprijs, dit geldt alleen bij rechtstreekse bestelling bij de LWEO B.V.",null,null,null,null,null,null,null,null,null,null,null,null,null,null,null,null,null,"man/vrouw/anders"]
[null,"2)   8e druk geschikt voor Excel 365; 7e druk geschikt voor Excel 2019/2016",null,null,null,null,null,null,null,null,null,null,null,null,null,null,null,null,null,"man"]
[null,"3)   Dit betreft een abonnement. Alleen rechtstreeks te bestellen bij de LWEO B.V. Prijs geldt per schoollocatie per schooljaar.",null,null,null,null,null,null,null,null,null,null,null,null,null,null,null,null,null,"vrouw"]
[null,"4)   Prijs geldt per leerling per schooljaar.",null,null,null,null,null,null,null,null,null,null,null,null,null,null,null,null,null,"anders"]
[null,"5)   Beschikbaar vanaf mei 2026."]